fUSD/lending_fUSD_20250421
["ID","MTS","AMOUNT","RATE_DAILY","PERIOD"]
[358578525,1745273523630,-1158.5,0.00048219,7]
[358578526,1745273523639,-772.47,0.00048219,7]
[358578527,1745273523649,-500.0,0.00048219,7]
[358578528,1745273523658,-500.0,0.00048219,7]
[358578529,1745273523667,-500.0,0.00048219,7]
[358578530,1745273523676,-500.0,0.00048219,7]
[358578531,1745273523685,-500.0,0.00048219,7]
[358578532,1745273523694,-583.01,0.00048219,7]
[358578533,1745273523704,-500.0,0.00048219,7]
[358578534,1745273523713,-500.0,0.00048219,7]
[358578535,1745273523723,-500.0,0.00048219,7]
[358578536,1745273523732,-500.0,0.00048219,7]
[358578537,1745273523742,-973.17,0.00048219,7]
[358578538,1745273523752,-500.0,0.00048219,7]
[358578539,1745273523761,-500.0,0.00048219,7]
[358578540,1745273523771,-867.69,0.00048219,7]
[358578541,1745273523780,-901.45,0.00048219,7]
[358578542,1745273523790,-1047.72,0.00048219,7]
[358578543,1745273523799,-996.82,0.00048219,7]
[358578544,1745273523809,-1136.8,0.00048219,7]
[358578545,1745273523819,-919.49,0.00048219,7]
[358578546,1745273523828,-1393.67,0.00048219,7]
[358578547,1745273523838,-1952.74,0.00048219,7]
[358578548,1745273523847,-500.0,0.00048219,2]
[358578549,1745273523857,-500.0,0.00048219,7]
[358578550,1745273523867,-3067.74,0.00048219,7]
[358578551,1745273523877,-500.0,0.00048219,7]
[358578552,1745273523886,-1668.15,0.00048219,7]
[358578553,1745273523895,-500.0,0.00048219,7]
[358578554,1745273523904,-1022.68,0.00048219,7]
[358578555,1745273523914,-500.0,0.00048219,7]
[358578556,1745273523923,-500.0,0.00048219,7]
[358578557,1745273523933,-662.83,0.00048219,7]
[358578558,1745273523943,-500.0,0.00048219,7]
[358578559,1745273523953,-500.0,0.00048219,7]
[358578560,1745273523963,-1574.74,0.00048219,7]
[358578561,1745273523972,-500.0,0.00048219,7]
[358578562,1745273523981,-1020.13,0.00048219,7]
[358578563,1745273523991,-574.9,0.00048219,7]
[358578564,1745273524001,-981.52,0.00048219,7]
[358578565,1745273524011,-956.86,0.00048219,7]
[358578566,1745273524021,-500.0,0.00048219,7]
[358578567,1745273524031,-673.68,0.00048219,7]
[358578568,1745273524040,-500.0,0.00048219,7]
[358578569,1745273524050,-151.0,0.00048219,14]
[358578570,1745273524060,-1117.56,0.00048219,7]
[358578571,1745273524069,-500.0,0.00048219,7]
[358578572,1745273524079,-500.0,0.00048219,7]
[358578573,1745273524089,-500.0,0.00048219,7]
[358578574,1745273524099,-1471.8,0.00048219,7]
[358578575,1745273524108,-500.0,0.00048219,7]
[358578576,1745273524118,-1910.22,0.00048219,7]
[358578577,1745273524128,-1450.05,0.00048219,7]
[358578578,1745273524138,-500.0,0.00048219,7]
[358578579,1745273524147,-500.0,0.00048219,7]
[358578580,1745273524157,-997.29,0.00048219,7]
[358578581,1745273524167,-500.0,0.00048219,7]
[358578582,1745273524177,-500.0,0.00048219,7]
[358578583,1745273524187,-525.77,0.00048219,7]
[358578584,1745273524197,-1056.06,0.00048219,7]
[358578585,1745273524206,-3115.83,0.00048219,7]
[358578586,1745273524216,-3275.5,0.00048219,7]
[358578587,1745273524225,-1074.12,0.00048219,7]
[358578588,1745273524235,-1721.58,0.00048219,7]
[358578589,1745273524244,-500.0,0.00048219,7]
[358578590,1745273524255,-300.0,0.00048219,7]
[358578591,1745273524265,-500.0,0.00048219,7]
[358578592,1745273524275,-500.0,0.00048219,7]
[358578593,1745273524286,-500.0,0.00048219,7]
[358578594,1745273524296,-500.0,0.00048219,7]
[358578595,1745273524305,-1422.93,0.00048219,7]
[358578596,1745273524315,-500.0,0.00048219,7]
[358578597,1745273524324,-500.0,0.00048219,7]
[358578598,1745273524333,-500.0,0.00048219,7]
[358578599,1745273524342,-834.44,0.00048219,7]
[358578600,1745273524352,-500.0,0.00048219,7]
[358578601,1745273524361,-743.09,0.00048219,7]
[358578602,1745273524371,-2831.35,0.00048219,7]
[358578603,1745273524382,-3209.48,0.00048219,7]
[358578604,1745273524391,-500.0,0.00048219,7]
[358578605,1745273524400,-500.0,0.00048219,7]
[358578606,1745273524414,-671.48,0.00048219,7]
[358578607,1745273524423,-500.0,0.00048219,7]
[358578608,1745273524433,-583.29,0.00048219,7]
[358578609,1745273524442,-500.00519739,0.00048219,7]
[358578610,1745273524452,-973.67,0.00048219,7]
[358578611,1745273524461,-1070.05,0.00048219,7]
[358578612,1745273524470,-1375.34,0.00048219,7]
[358578613,1745273524480,-500.0,0.00048219,7]
[358578614,1745273524489,-7001.07,0.00048219,7]
[358578615,1745273524499,-500.0,0.00048219,7]
[358578616,1745273524509,-2437.85,0.00048219,7]
[358578617,1745273524520,-500.0,0.00048219,7]
[358578618,1745273524531,-500.0,0.00048219,7]
[358578619,1745273524541,-2289.63,0.00048219,7]
[358578620,1745273524551,-1522.45,0.00048219,7]
[358578621,1745273524561,-500.0,0.00048219,7]
[358578622,1745273524571,-500.0,0.00048219,7]
[358578623,1745273524581,-829.97,0.00048219,7]
[358578624,1745273524591,-1573.28,0.00048219,7]
[358578625,1745273524601,-148396.62,0.00048219,7]
[358578626,1745273524611,-783.77,0.00048219,7]
[358578627,1745273524796,-500.0,0.00048219,7]
[358578628,1745273524806,-2454.7,0.00048219,7]
[358578629,1745273524815,-500.0,0.00048219,7]
[358578630,1745273524824,-527.57,0.00048219,7]
[358578631,1745273524835,-612.25,0.00048219,7]
[358578632,1745273524844,-1343.12,0.00048219,7]
[358578633,1745273524853,-500.0,0.00048219,7]
[358578634,1745273524862,-2236.11,0.00048219,7]
[358578635,1745273524871,-500.0,0.00048219,7]
[358578636,1745273524881,-963.95,0.00048219,7]
[358578637,1745273524891,-997.67,0.00048219,7]
[358578638,1745273524900,-500.0,0.00048219,7]
[358578639,1745273524909,-1289.89,0.00048219,7]
[358578640,1745273524918,-655.96,0.00048219,7]
[358578641,1745273524928,-678.03,0.00048219,7]
[358578642,1745273524937,-569.75,0.00048219,7]
[358578643,1745273524947,-1596.74,0.00048219,7]
[358578644,1745273524957,-500.0,0.00048219,7]
[358578645,1745273524967,-3240.43,0.00048219,7]
[358578646,1745273524976,-500.0,0.00048219,7]
[358578647,1745273524986,-518.73,0.00048219,7]
[358578648,1745273524996,-500.0,0.00048219,7]
[358578649,1745273525006,-891.42,0.00048219,7]
[358578650,1745273525015,-511.37,0.00048219,7]
[358578651,1745273525025,-1959.65,0.00048219,7]
[358578652,1745273525035,-804.59,0.00048219,7]
[358578653,1745273525045,-2145.1,0.00048219,7]
[358578654,1745273525054,-500.0,0.00048219,7]
[358578655,1745273525065,-5109.84,0.00048219,7]
[358578656,1745273525075,-500.0,0.00048219,7]
[358578657,1745273525085,-500.0,0.00048219,7]
[358578658,1745273525094,-1484.19,0.00048219,7]
[358578659,1745273525104,-561.55,0.00048219,7]
[358578660,1745273525114,-500.0,0.00048219,7]
[358578661,1745273525123,-1100.11,0.00048219,7]
[358578662,1745273525133,-859.56,0.00048219,7]
[358578663,1745273525143,-500.0,0.00048219,7]
[358578664,1745273525153,-574.2,0.00048219,7]
[358578665,1745273525163,-2581.69,0.00048219,7]
[358578666,1745273525173,-596.37,0.00048219,7]
[358578667,1745273525183,-1348.97,0.00048219,7]
[358578668,1745273525193,-889.4,0.00048219,7]
[358578669,1745273525203,-948.97,0.00048219,7]
[358578670,1745273525212,-868.91,0.00048219,7]
[358578671,1745273525222,-500.0,0.00048219,7]
[358578672,1745273525232,-2009.27,0.00048219,7]
[358578673,1745273525242,-574.42796286,0.00048219,7]
[358578674,1745273525252,-717.21,0.00048219,7]
[358578675,1745273525262,-500.0,0.00048219,7]
[358578676,1745273525272,-1570.7,0.00048219,7]
[358578677,1745273525282,-500.0,0.00048219,7]
[358578678,1745273525292,-500.0,0.00048219,7]
[358578679,1745273525301,-500.0,0.00048219,7]
[358578680,1745273525311,-1677.09,0.00048219,7]
[358578681,1745273525320,-1058.05,0.00048219,7]
[358578682,1745273525330,-500.0,0.00048219,7]
[358578683,1745273525340,-1248.18,0.00048219,7]
[358578684,1745273525350,-508.66,0.00048219,7]
[358578685,1745273525359,-151.0,0.00048219,14]
[358578686,1745273525370,-500.0,0.00048219,7]
[358578687,1745273525379,-616.38,0.00048219,7]
[358578688,1745273525389,-2278.19,0.00048219,7]
[358578689,1745273525399,-1336.46,0.00048219,7]
[358578690,1745273525411,-2099.91,0.00048219,7]
[358578691,1745273525422,-500.0,0.00048219,7]
[358578692,1745273525432,-500.0,0.00048219,7]
[358578693,1745273525442,-500.0,0.00048219,7]
[358578694,1745273525454,-1053.78,0.00048219,7]
[358578695,1745273525463,-2998.83,0.00048219,7]
[358578696,1745273525473,-831.47,0.00048219,7]
[358578697,1745273525484,-500.0,0.00048219,7]
[358578698,1745273525494,-1357.54,0.00048219,7]
[358578699,1745273525504,-500.0,0.00048219,7]
[358578700,1745273525514,-743.94,0.00048219,7]
[358578701,1745273525523,-1579.09,0.00048219,7]
[358578702,1745273525534,-500.0,0.00048219,7]
[358578703,1745273525543,-2781.12,0.00048219,7]
[358578704,1745273525553,-1075.24,0.00048219,7]
[358578705,1745273525562,-592.06,0.00048219,7]
[358578706,1745273525573,-500.0,0.00048219,7]
[358578707,1745273525583,-575.54,0.00048219,7]
[358578708,1745273525594,-1561.76,0.00048219,7]
[358578709,1745273525603,-1637.73,0.00048219,7]
[358578710,1745273525613,-1456.28,0.00048219,7]
[358578711,1745273525623,-500.0,0.00048219,7]
[358578712,1745273525633,-2605.24,0.00048219,7]
[358578713,1745273525643,-853.74,0.00048219,7]
[358578714,1745273525653,-2212.34,0.00048219,7]
[358578715,1745273525662,-2220.57,0.00048219,7]
[358578716,1745273525672,-598.39,0.00048219,7]
[358578717,1745273525682,-901.27,0.00048219,7]
[358578718,1745273525692,-578.81,0.00048219,7]
[358578719,1745273525701,-500.0,0.00048219,7]
[358578720,1745273525711,-500.0,0.00048219,7]
[358578721,1745273525721,-1275.11,0.00048219,7]
[358578722,1745273525731,-500.0,0.00048219,7]
[358578723,1745273525740,-500.0,0.00048219,7]
[358578724,1745273525750,-2355.08,0.00048219,7]
[358578725,1745273525760,-500.0,0.00048219,7]
[358578726,1745273525770,-1605.45,0.00048219,7]
[358578727,1745273525780,-2547.52,0.00048219,7]
[358578728,1745273525789,-500.0,0.00048219,7]
[358578729,1745273525799,-500.0,0.00048219,7]
[358578730,1745273525809,-500.0,0.00048219,7]
[358578731,1745273525818,-1104.86,0.00048219,7]
[358578732,1745273525828,-2642.88,0.00048219,7]
[358578733,1745273525838,-737.39,0.00048219,7]
[358578734,1745273525847,-1339.26,0.00048219,7]
[358578735,1745273525857,-1748.44,0.00048219,2]
[358578736,1745273525866,-662.24,0.00048219,7]
[358578737,1745273525876,-500.0,0.00048219,7]
[358578738,1745273525885,-500.0,0.00048219,7]
[358578739,1745273525894,-798.15,0.00048219,7]
[358578740,1745273525903,-1174.25,0.00048219,7]
[358578741,1745273525913,-500.0,0.00048219,7]
[358578742,1745273525923,-5495.09,0.00048219,7]
[358578743,1745273525933,-500.0,0.00048219,7]
[358578744,1745273525943,-500.0,0.00048219,7]
[358578745,1745273525952,-707.27,0.00048219,7]
[358578746,1745273525962,-1000.0,0.00048274,2]
[358578747,1745273525971,-2000.0,0.000483,2]
[358578748,1745273525980,-1273.10793311,0.00048414,2]
[358578749,1745273525990,-617.11674762,0.00048414,2]
[358578750,1745273525999,-1273.10793311,0.00048415,2]
[358578751,1745273526008,-417.35956535,0.00048418,2]
[358578752,1745273526018,-454.22149685,0.0004843,2]
[358578753,1745273526027,-13299.53686517,0.00048431,2]
[358578754,1745273526037,-2193.95171971,0.00048437,2]
[358578755,1745273526046,-454.22149685,0.00048437,2]
[358578756,1745273526057,-1273.10793311,0.00048441,2]
[358578757,1745273526066,-2193.95171971,0.00048444,2]
[358578758,1745273526075,-417.35956535,0.00048446,2]
[358578759,1745273526085,-333.72450283,0.00048452,2]
[358578760,1745273526095,-1273.10793311,0.00048452,2]
[358578761,1745273526104,-13299.53686517,0.00048463,2]
[358578762,1745273526114,-454.22149685,0.00048465,2]
[358578763,1745273526124,-1273.10793311,0.00048469,2]
[358578764,1745273526134,-417.35956535,0.00048477,2]
[358578765,1745273526143,-617.11674762,0.00048477,2]
[358578766,1745273526153,-2193.95171971,0.0004848,2]
[358578767,1745273526163,-454.22149685,0.00048485,2]
[358578768,1745273526172,-195.71763815,0.00048493,7]
[358578769,1745273526182,-150.042206,0.00048498,120]
[358578770,1745273526192,-1273.10793311,0.00048502,2]
[358578771,1745273526201,-13299.53686517,0.00048503,2]
[358578772,1745273526211,-1000.0,0.00048511,2]
[358578773,1745273526220,-1273.10793311,0.00048513,2]
[358578774,1745273526229,-454.22149685,0.00048515,2]
[358578775,1745273526238,-333.72450283,0.00048528,2]
[358578776,1745273526248,-417.35956535,0.00048537,2]
[358578777,1745273526258,-2193.95171971,0.0004854,2]
[358578778,1745273526267,-454.22149685,0.00048548,2]
[358578779,1745273526277,-617.11674762,0.00048555,2]
[358578780,1745273526286,-13299.53686517,0.00048573,2]
[358578781,1745273526295,-600.0,0.00048573,120]
[358578782,1745273526305,-2193.95171971,0.00048575,2]
[358578783,1745273526315,-1273.10793311,0.00048579,2]
[358578784,1745273526324,-454.22149685,0.00048579,2]
[358578785,1745273526334,-417.35956535,0.00048584,2]
[358578786,1745273526344,-333.72450283,0.00048585,2]
[358578787,1745273526354,-333.72450283,0.00048595,2]
[358578788,1745273526363,-2193.95171971,0.00048595,2]
[358578789,1745273526374,-2193.95171971,0.00048597,2]
[358578790,1745273526383,-333.72450283,0.00048606,2]
[358578791,1745273526395,-200.0,0.00048607,2]
[358578792,1745273526405,-13299.53686517,0.00048611,2]
[358578793,1745273526419,-417.35956535,0.00048615,2]
[358578794,1745273526429,-333.72450283,0.00048615,2]
[358578795,1745273526439,-13299.53686517,0.00048618,2]
[358578796,1745273526448,-617.11674762,0.0004862,2]
[358578797,1745273526459,-2193.95171971,0.00048622,2]
[358578798,1745273526468,-617.11674762,0.00048622,2]
[358578799,1745273526478,-617.11674762,0.00048627,2]
[358578800,1745273526487,-13299.53686517,0.0004863,2]
[358578801,1745273526496,-417.35956535,0.0004863,2]
[358578802,1745273526505,-617.11674762,0.00048642,2]
[358578803,1745273526515,-13299.53686517,0.00048647,2]
[358578804,1745273526524,-417.35956535,0.00048654,2]
[358578805,1745273526534,-333.72450283,0.00048672,2]
[358578806,1745273526543,-454.22149685,0.0004868,2]
[358578807,1745273526552,-1555.97,0.00048682,2]
[358578808,1745273526561,-200.0,0.00048685,2]
[358578809,1745273526570,-617.11674762,0.00048695,2]
[358578810,1745273526579,-333.72450283,0.00048699,2]
[358578811,1745273526589,-900.0,0.00048744,120]
[358578812,1745273526598,-151.0,0.00048767,14]
[358578813,1745273526607,-1656.741814,0.00048767,7]
[358578814,1745273526616,-500.406308,0.00048767,7]
[358578815,1745273526626,-287.93679,0.00048767,14]
[358578816,1745273526636,-287.93679,0.00048767,14]
[358578817,1745273526645,-151.0,0.00048767,14]
[358578818,1745273526655,-477.55130786,0.00048767,7]
[358578819,1745273526664,-500.0,0.00048767,7]
[358578820,1745273526674,-635.43728321,0.00048767,7]
[358578821,1745273526683,-500.0,0.00048767,7]
[358578822,1745273526692,-500.0,0.00048767,7]
[358578823,1745273526701,-500.0,0.00048767,7]
[358578824,1745273526710,-500.0,0.00048767,7]
[358578825,1745273526719,-864.57,0.00048767,7]
[358578826,1745273526728,-500.0,0.00048767,7]
[358578827,1745273526738,-500.0,0.00048767,7]
[358578828,1745273526747,-500.0,0.00048767,7]
[358578829,1745273526757,-500.0,0.00048767,7]
[358578830,1745273526767,-500.0,0.00048767,7]
[358578831,1745273526776,-500.0,0.00048767,7]
[358578832,1745273526786,-674.89,0.00048767,7]
[358578833,1745273526795,-500.0,0.00048767,7]
[358578834,1745273526805,-500.0,0.00048767,7]
[358578835,1745273526815,-1669.69,0.00048767,7]
[358578836,1745273526825,-500.0,0.00048767,7]
[358578837,1745273526835,-791.37,0.00048767,7]
[358578838,1745273526844,-500.0,0.00048767,7]
[358578839,1745273526853,-500.0,0.00048767,7]
[358578840,1745273526863,-1023.25,0.00048767,7]
[358578841,1745273526872,-500.0,0.00048767,7]
[358578842,1745273526882,-1458.87,0.00048767,7]
[358578843,1745273526890,-559.12728097,0.00048767,7]
[358578844,1745273526899,-500.0,0.00048767,7]
[358578845,1745273526909,-538.88610578,0.00048767,7]
[358578846,1745273526919,-500.0,0.00048767,7]
[358578847,1745273526928,-500.0,0.00048767,7]
[358578848,1745273526938,-338.91767018,0.00048767,7]
[358578849,1745273526947,-500.0,0.00048767,7]
[358578850,1745273526956,-514.29135373,0.00048767,7]
[358578851,1745273526966,-500.0,0.00048767,7]
[358578852,1745273526975,-529.82,0.00048767,7]
[358578853,1745273526984,-509.07390576,0.00048767,7]
[358578854,1745273526994,-500.0,0.00048767,7]
[358578855,1745273527003,-520.46609952,0.00048767,7]
[358578856,1745273527012,-969.44,0.00048767,7]
[358578857,1745273527021,-599.14482351,0.00048767,7]
[358578858,1745273527031,-500.0,0.00048767,7]
[358578859,1745273527040,-340.3895387,0.00048767,7]
[358578860,1745273527050,-500.0,0.00048767,7]
[358578861,1745273527059,-500.0,0.00048767,7]
[358578862,1745273527068,-500.0,0.00048767,7]
[358578863,1745273527078,-629.509786,0.00048767,7]
[358578864,1745273527088,-690.93,0.00048767,7]
[358578865,1745273527098,-500.0,0.00048767,7]
[358578866,1745273527107,-500.0,0.00048767,7]
[358578867,1745273527116,-500.0,0.00048767,7]
[358578868,1745273527126,-593.3,0.00048767,7]
[358578869,1745273527135,-1494.4,0.00048767,7]
[358578870,1745273527144,-815.18,0.00048767,7]
[358578871,1745273527154,-2474.26,0.00048767,7]
[358578872,1745273527163,-337.39988191,0.00048767,7]
[358578873,1745273527173,-847.59,0.00048767,7]
[358578874,1745273527182,-847.27,0.00048767,7]
[358578875,1745273527192,-1385.14,0.00048767,7]
[358578876,1745273527201,-1515.36,0.00048767,7]
[358578877,1745273527210,-710.84,0.00048767,7]
[358578878,1745273527221,-585.36,0.00048767,7]
[358578879,1745273527231,-540.95,0.00048767,7]
[358578880,1745273527241,-500.0,0.00048767,7]
[358578881,1745273527251,-500.0,0.00048767,7]
[358578882,1745273527260,-2340.33,0.00048767,7]
[358578883,1745273527270,-500.0,0.00048767,7]
[358578884,1745273527280,-500.0,0.00048767,7]
[358578885,1745273527290,-500.0,0.00048767,7]
[358578886,1745273527300,-500.0,0.00048767,7]
[358578887,1745273527310,-623.44,0.00048767,7]
[358578888,1745273527319,-324.69,0.00048767,7]
[358578889,1745273527329,-500.0,0.00048767,7]
[358578890,1745273527338,-500.0,0.00048767,7]
[358578891,1745273527348,-826.96,0.00048767,7]
[358578892,1745273527357,-500.0,0.00048767,7]
[358578893,1745273527366,-500.0,0.00048767,7]
[358578894,1745273527376,-500.0,0.00048767,7]
[358578895,1745273527386,-500.0,0.00048767,7]
[358578896,1745273527395,-519.36,0.00048767,7]
[358578897,1745273527405,-1297.18,0.00048767,7]
[358578898,1745273527418,-500.0,0.00048767,7]
[358578899,1745273527428,-500.0,0.00048767,7]
[358578900,1745273527437,-514.13,0.00048767,7]
[358578901,1745273527447,-500.0,0.00048767,7]
[358578902,1745273527457,-980.71,0.00048767,7]
[358578903,1745273527466,-500.0,0.00048767,7]
[358578904,1745273527636,-500.0,0.00048767,7]
[358578905,1745273527646,-500.0,0.00048767,7]
[358578906,1745273527656,-500.0,0.00048767,7]
[358578907,1745273527665,-706.63,0.00048767,7]
[358578908,1745273527675,-579.09,0.00048767,7]
[358578909,1745273527685,-858.69,0.00048767,7]
[358578910,1745273527695,-881.75,0.00048767,7]
[358578911,1745273527704,-500.0,0.00048767,7]
[358578912,1745273527714,-711.53,0.00048767,7]
[358578913,1745273527728,-884.65,0.00048767,7]
[358578914,1745273527738,-270.19695642,0.00048767,7]
[358578915,1745273527748,-904.67,0.00048767,7]
[358578916,1745273527758,-500.0,0.00048767,7]
[358578917,1745273527768,-1183.26,0.00048767,7]
[358578918,1745273527777,-546.21,0.00048767,7]
[358578919,1745273527787,-1290.34,0.00048767,7]
[358578920,1745273527797,-1419.16,0.00048767,7]
[358578921,1745273527807,-863.91,0.00048767,7]
[358578922,1745273527817,-500.0,0.00048767,7]
[358578923,1745273527827,-1668.61,0.00048767,7]
[358578924,1745273527837,-500.0,0.00048767,7]
[358578925,1745273527846,-1001.34,0.00048767,7]
[358578926,1745273527856,-626.59814236,0.00048767,7]
[358578927,1745273527866,-500.0,0.00048767,7]
[358578928,1745273527876,-500.0,0.00048767,7]
[358578929,1745273527886,-500.0,0.00048767,7]
[358578930,1745273527896,-500.0,0.00048767,7]
[358578931,1745273527906,-2387.71,0.00048767,7]
[358578932,1745273527916,-500.0,0.00048767,7]
[358578933,1745273527927,-500.0,0.00048767,7]
[358578934,1745273527936,-500.0,0.00048767,7]
[358578935,1745273527946,-1099.51,0.00048767,7]
[358578936,1745273527956,-657.93,0.00048767,7]
[358578937,1745273527966,-518.09002428,0.00048767,7]
[358578938,1745273527976,-500.0,0.00048767,7]
[358578939,1745273527985,-786.17,0.00048767,7]
[358578940,1745273527995,-500.0,0.00048767,7]
[358578941,1745273528005,-1738.61,0.00048767,7]
[358578942,1745273528014,-1177.97,0.00048767,7]
[358578943,1745273528024,-1533.1,0.00048767,7]
[358578944,1745273528034,-500.0,0.00048767,7]
[358578945,1745273528043,-500.0,0.00048767,7]
[358578946,1745273528053,-601.4,0.00048767,7]
[358578947,1745273528064,-500.0,0.00048767,7]
[358578948,1745273528074,-604.48,0.00048767,7]
[358578949,1745273528084,-500.0,0.00048767,7]
[358578950,1745273528095,-500.0,0.00048767,7]
[358578951,1745273528105,-947.57,0.00048767,7]
[358578952,1745273528115,-550.48563296,0.00048767,7]
[358578953,1745273528126,-500.0,0.00048767,7]
[358578954,1745273528136,-1198.33,0.00048767,7]
[358578955,1745273528146,-779.43,0.00048767,7]
[358578956,1745273528156,-927.9,0.00048767,7]
[358578957,1745273528165,-580.05,0.00048767,7]
[358578958,1745273528175,-500.0,0.00048767,7]
[358578959,1745273528186,-500.0,0.00048767,7]
[358578960,1745273528196,-1505.54,0.00048767,7]
[358578961,1745273528206,-500.0,0.00048767,7]
[358578962,1745273528216,-500.0,0.00048767,7]
[358578963,1745273528226,-635.74,0.00048767,7]
[358578964,1745273528236,-729.68,0.00048767,7]
[358578965,1745273528245,-500.0,0.00048767,7]
[358578966,1745273528256,-1567.41,0.00048767,7]
[358578967,1745273528266,-1953.23,0.00048767,7]
[358578968,1745273528275,-1438.84,0.00048767,7]
[358578969,1745273528286,-2454.44,0.00048767,7]
[358578970,1745273528296,-500.0,0.00048767,7]
[358578971,1745273528305,-414.76,0.00048767,7]
[358578972,1745273528315,-951.19,0.00048767,7]
[358578973,1745273528326,-500.0,0.00048767,7]
[358578974,1745273528337,-500.0,0.00048767,7]
[358578975,1745273528348,-500.0,0.00048767,7]
[358578976,1745273528359,-532.18195224,0.00048767,7]
[358578977,1745273528370,-500.0,0.00048767,7]
[358578978,1745273528380,-500.0,0.00048767,7]
[358578979,1745273528390,-1772.65,0.00048767,7]
[358578980,1745273528400,-500.0,0.00048767,7]
[358578981,1745273528411,-1520.58,0.00048767,7]
[358578982,1745273528422,-500.0,0.00048767,30]
[358578983,1745273528431,-1100.31,0.00048767,7]
[358578984,1745273528442,-1134.03,0.00048767,7]
[358578985,1745273528452,-2906.42,0.00048767,7]
[358578986,1745273528462,-765.04,0.00048767,7]
[358578987,1745273528472,-500.0,0.00048767,7]
[358578988,1745273528481,-658.02,0.00048767,7]
[358578989,1745273528491,-500.0,0.00048767,7]
[358578990,1745273528500,-500.0,0.00048767,7]
[358578991,1745273528511,-702.96,0.00048767,7]
[358578992,1745273528520,-500.0,0.00048767,7]
[358578993,1745273528529,-687.2,0.00048767,7]
[358578994,1745273528539,-530.47078457,0.00048767,7]
[358578995,1745273528550,-1543.41,0.00048767,7]
[358578996,1745273528559,-1256.12,0.00048767,7]
[358578997,1745273528569,-500.0,0.00048767,7]
[358578998,1745273528579,-500.0,0.00048767,7]
[358578999,1745273528590,-621.72,0.00048767,7]
[358579000,1745273528599,-500.0,0.00048767,7]
[358579001,1745273528609,-500.0,0.00048767,7]
[358579002,1745273528619,-506.68,0.00048767,7]
[358579003,1745273528629,-500.0,0.00048767,7]
[358579004,1745273528638,-1317.58,0.00048767,7]
[358579005,1745273528647,-500.0,0.00048767,7]
[358579006,1745273528656,-500.0,0.00048767,7]
[358579007,1745273528665,-685.99,0.00048767,7]
[358579008,1745273528675,-821.12,0.00048767,7]
[358579009,1745273528685,-797.08,0.00048767,7]
[358579010,1745273528695,-1948.41,0.00048767,7]
[358579011,1745273528704,-1659.14,0.00048767,7]
[358579012,1745273528714,-1221.11,0.00048767,7]
[358579013,1745273528723,-1048.75,0.00048767,7]
[358579014,1745273528732,-500.0,0.00048767,7]
[358579015,1745273528742,-1335.52,0.00048767,7]
[358579016,1745273528751,-243.91011954,0.00048767,7]
[358579017,1745273528761,-500.0,0.00048767,7]
[358579018,1745273528771,-816.95,0.00048767,7]
[358579019,1745273528781,-672.04,0.00048767,7]
[358579020,1745273528791,-500.0,0.00048767,7]
[358579021,1745273528801,-1122.27,0.00048767,7]
[358579022,1745273528811,-500.0,0.00048767,7]
[358579023,1745273528820,-500.0,0.00048767,7]
[358579024,1745273528829,-583.75,0.00048767,7]